fUSD/lending_fUSD_20250304
["ID","MTS","AMOUNT","RATE_DAILY","PERIOD"]
[355370394,1741083043882,-878.91,0.00010989,2]
[355370396,1741083043892,-3709.78,0.00010989,2]
[355370398,1741083043901,-768.55,0.00010989,2]
[355370400,1741083043912,-3092.48,0.00010989,2]
[355370402,1741083043921,-5560.36,0.00010989,2]
[355370404,1741083043931,-2137.65,0.00010989,2]
[355370406,1741083043940,-1121.71,0.00010989,2]
[355370408,1741083043950,-3733.1,0.00010989,2]
[355370410,1741083043959,-500.0,0.00010989,2]
[355370412,1741083043968,-500.0,0.00010989,2]
[355370414,1741083043978,-213.01651131,0.00010989,2]
[355370416,1741083043988,-500.0,0.00010989,2]
[355370418,1741083043997,-500.0,0.00010989,2]
[355370420,1741083044006,-500.0,0.00010989,2]
[355370422,1741083044016,-500.0,0.00010989,2]
[355370424,1741083044025,-500.0,0.00010989,2]
[355370426,1741083044034,-500.0,0.00010989,2]
[355370428,1741083044043,-4103.95,0.00010989,2]
[355370430,1741083044053,-2549.31,0.00010989,2]
[355370432,1741083044062,-500.0,0.00010989,2]
[355370434,1741083044071,-500.0,0.00010989,2]
[355370436,1741083044081,-1368.28,0.00010989,2]
[355370438,1741083044090,-3881.16928196,0.00010989,2]
[355370440,1741083044102,-404.801412,0.00010989,2]
[355370705,1741083046771,869.29,0.00010152,2]
[355370709,1741083046803,-416.04,0.00010932,2]
[355370711,1741083046813,-500.0,0.00010987,2]
[355370713,1741083046822,-581.19930604,0.00010989,2]
[355370715,1741083046831,-6515.21069396,0.00010989,2]
[355370718,1741083046842,-7146.86982,0.00010989,2]
[355370724,1741083046889,-5909.23948604,0.00010989,2]
[355370726,1741083046898,-4573.93,0.00010989,2]
[355370728,1741083046907,-3284.0,0.0001099,2]
[355370730,1741083046917,-483.18135912,0.0001099,2]
[355370732,1741083046926,-500.0,0.0001099,2]
[355370734,1741083046935,-618.24,0.0001099,2]
[355370736,1741083046944,-202.18404414,0.0001099,2]
[355370738,1741083046953,-729.15,0.0001099,2]
[355370740,1741083046962,-515.28935045,0.0001099,2]
[355370742,1741083046971,-312.16913927,0.0001099,2]
[355370744,1741083046980,-515.98,0.0001099,2]
[355370746,1741083046990,-500.0,0.0001099,2]
[355370748,1741083046999,-500.0,0.0001099,2]
[355370750,1741083047008,-504.93174572,0.0001099,2]
[355370752,1741083047017,-577.33,0.0001099,2]
[355370754,1741083047027,-509.04033612,0.0001099,2]
[355370756,1741083047036,-500.0,0.0001099,2]
[355370758,1741083047045,-587.8,0.0001099,2]
[355370759,1741083047054,-562.26,0.0001099,2]
[355370761,1741083047063,-791.59,0.0001099,2]
[355370763,1741083047071,-500.0,0.0001099,2]
[355370765,1741083047081,-354.00174836,0.0001099,2]
[355370767,1741083047090,-500.0,0.0001099,2]
[355370769,1741083047099,-500.0,0.0001099,2]
[355370771,1741083047108,-817.35,0.0001099,2]
[355370773,1741083047117,-500.0,0.0001099,2]
[355370775,1741083047127,-843.23,0.0001099,2]
[355370777,1741083047135,-883.47,0.0001099,2]
[355370779,1741083047145,-1063.91,0.0001099,2]
[355370781,1741083047154,-502.1124991,0.0001099,2]
[355370783,1741083047164,-657.22,0.0001099,2]
[355370785,1741083047174,-819.89,0.0001099,2]
[355370787,1741083047183,-500.0,0.0001099,2]
[355370789,1741083047192,-500.0,0.0001099,2]
[355370791,1741083047202,-500.0,0.0001099,2]
[355370793,1741083047211,-500.0,0.0001099,2]
[355370796,1741083047221,-500.0,0.0001099,2]
[355370798,1741083047233,-1006.16,0.0001099,2]
[355370800,1741083047242,-763.46,0.0001099,2]
[355370802,1741083047252,-500.0,0.0001099,2]
[355370804,1741083047261,-505.20124983,0.0001099,2]
[355370806,1741083047271,-1381.91,0.0001099,2]
[355370808,1741083047280,-720.81,0.0001099,2]
[355370810,1741083047290,-522.56905394,0.0001099,2]
[355370812,1741083047299,-500.0,0.0001099,2]
[355370814,1741083047308,-661.43,0.0001099,2]
[355370816,1741083047317,-500.0,0.0001099,2]
[355370818,1741083047327,-524.88819493,0.0001099,2]
[355370820,1741083047336,-681.65,0.0001099,2]
[355370822,1741083047345,-1266.11,0.0001099,2]
[355370824,1741083047354,-500.0,0.0001099,2]
[355370826,1741083047363,-513.72746166,0.0001099,2]
[355370828,1741083047372,-505.81661227,0.0001099,2]
[355370829,1741083047381,-898.8,0.0001099,2]
[355370831,1741083047390,-511.02,0.0001099,2]
[355370833,1741083047400,-724.2,0.0001099,2]
[355370835,1741083047409,-500.0,0.0001099,2]
[355370837,1741083047418,-744.26,0.0001099,2]
[355370838,1741083047427,-865.6,0.0001099,2]
[355370840,1741083047436,-500.0,0.0001099,2]
[355370842,1741083047445,-500.0,0.0001099,2]
[355370843,1741083047454,-500.0,0.0001099,2]
[355370845,1741083047463,-500.0,0.0001099,2]
[355370847,1741083047472,-662.65,0.0001099,2]
[355370849,1741083047480,-552.7,0.0001099,2]
[355370850,1741083047489,-191.275524,0.0001099,2]
[355370852,1741083047498,-1093.05,0.0001099,2]
[355370854,1741083047507,-500.0,0.0001099,2]
[355370856,1741083047515,-114.89810753,0.0001099,2]
[355370858,1741083047527,-385.10189247,0.0001099,2]
[355370859,1741083047541,-506.44746104,0.0001099,2]
[355370861,1741083047550,-959.11,0.0001099,2]
[355370863,1741083047560,-500.0,0.0001099,2]
[355370864,1741083047571,-500.0,0.0001099,2]
[355370866,1741083047581,-500.0,0.0001099,2]
[355370868,1741083047591,-500.0,0.0001099,2]
[355370870,1741083047601,-1264.97,0.0001099,2]
[355370871,1741083047611,-1047.25,0.0001099,2]
[355370873,1741083047621,-500.0,0.0001099,2]
[355370875,1741083047631,-823.38,0.0001099,2]
[355370877,1741083047641,-575.3,0.0001099,2]
[355370878,1741083047650,-500.0,0.0001099,2]
[355370880,1741083047658,-1158.47,0.0001099,2]
[355370882,1741083047667,-500.0,0.0001099,2]
[355370884,1741083047676,-660.36,0.0001099,2]
[355370885,1741083047686,-991.5,0.0001099,2]
[355370887,1741083047696,-570.27,0.0001099,2]
[355370889,1741083047706,-603.96,0.0001099,2]
[355370891,1741083047717,-1074.96,0.0001099,2]
[355370892,1741083047726,-500.0,0.0001099,2]
[355370894,1741083047736,-794.11,0.0001099,2]
[355370896,1741083047746,-500.0,0.0001099,2]
[355370898,1741083047756,-500.0,0.0001099,2]
[355370900,1741083047766,-1121.51,0.0001099,2]
[355370901,1741083047775,-500.0,0.0001099,2]
[355370903,1741083047787,-500.0,0.0001099,2]
[355370905,1741083047797,-500.0,0.0001099,2]
[355370907,1741083047806,-500.0,0.0001099,2]
[355370909,1741083047815,-500.0,0.0001099,2]
[355370910,1741083047825,-500.0,0.0001099,2]
[355370912,1741083047835,-500.0,0.0001099,2]
[355370914,1741083047845,-500.0,0.0001099,2]
[355370916,1741083047855,-500.0,0.0001099,2]
[355370917,1741083047864,-598.89,0.0001099,2]
[355370919,1741083047873,-945.39,0.0001099,2]
[355370921,1741083047883,-507.97873785,0.0001099,2]
[355370923,1741083047892,-712.72,0.0001099,2]
[355370924,1741083047902,-1053.88,0.0001099,2]
[355370926,1741083047911,-1247.18,0.0001099,2]
[355370928,1741083047921,-864.66,0.0001099,2]
[355370930,1741083047930,-500.0,0.0001099,2]
[355370932,1741083047939,-500.0,0.0001099,2]
[355370934,1741083047949,-500.0,0.0001099,2]
[355370936,1741083047958,-500.0,0.0001099,2]
[355370937,1741083047967,-502.63431803,0.0001099,2]
[355370939,1741083047976,-500.0,0.0001099,2]
[355370941,1741083047986,-500.0,0.0001099,2]
[355370942,1741083047995,-500.0,0.0001099,2]
[355370944,1741083048005,-758.74,0.0001099,2]
[355370946,1741083048015,-593.83,0.0001099,2]
[355370948,1741083048025,-500.0,0.0001099,2]
[355370950,1741083048036,-1585.39,0.0001099,2]
[355370952,1741083048045,-500.0,0.0001099,2]
[355370954,1741083048055,-1016.78,0.0001099,2]
[355370956,1741083048064,-500.0,0.0001099,2]
[355370957,1741083048074,-1390.99,0.0001099,2]
[355370959,1741083048084,-500.0,0.0001099,2]
[355370961,1741083048093,-500.0,0.0001099,2]
[355370963,1741083048103,-1008.04,0.0001099,2]
[355370965,1741083048112,-500.0,0.0001099,2]
[355370967,1741083048122,-1593.59,0.0001099,2]
[355370969,1741083048133,-500.0,0.0001099,2]
[355370970,1741083048142,-645.45,0.0001099,2]
[355370972,1741083048152,-500.0,0.0001099,2]
[355370974,1741083048161,-513.03952666,0.0001099,2]
[355370976,1741083048170,-1256.07,0.0001099,2]
[355370978,1741083048180,-846.88,0.0001099,2]
[355370979,1741083048189,-1212.89,0.0001099,2]
[355370981,1741083048199,-1396.07,0.0001099,2]
[355370983,1741083048208,-523.48279872,0.0001099,2]
[355370985,1741083048217,-1021.44,0.0001099,2]
[355370987,1741083048226,-500.0,0.0001099,2]
[355370989,1741083048235,-152.057166,0.0001099,2]
[355370990,1741083048244,-500.0,0.0001099,2]
[355370992,1741083048253,-500.0,0.0001099,2]
[355370994,1741083048263,-1083.7,0.0001099,2]
[355370996,1741083048272,-500.0,0.0001099,2]
[355370998,1741083048282,-1193.32,0.0001099,2]
[355371000,1741083048292,-500.0,0.0001099,2]
[355371002,1741083048301,-500.0,0.0001099,2]
[355371004,1741083048311,-639.71,0.0001099,2]
[355371005,1741083048320,-500.0,0.0001099,2]
[355371024,1741083048511,-755.98,0.0001099,2]
[355371025,1741083048521,-714.27,0.0001099,2]
[355371027,1741083048533,-693.05,0.0001099,2]
[355371029,1741083048545,-500.0,0.0001099,2]
[355371031,1741083048554,-500.0,0.0001099,2]
[355371033,1741083048563,-45.83449609,0.0001099,2]
[355371044,1741083048683,-395.66579341,0.0001099,2]
[355372875,1741083097298,500.0,0.000101,2]
[355372882,1741083166589,317.9,0.00010127,2]
[355372883,1741083278282,583.98,8.219e-05,2]
[355372884,1741083398643,1000.0,9.996e-05,2]
[355372885,1741083402244,163.68,9.996e-05,2]
[355372886,1741083701896,250.0,0.00010002,2]
[355372887,1741083811214,-150.0,0.00010324,2]
[355372888,1741083822408,150.0,9.981e-05,7]
[355372889,1741083869991,342.24,9.981e-05,2]
[355372899,1741084114401,-163.26,0.00010284,2]
[355372902,1741084114430,-831.293214,0.00010324,2]
[355372903,1741084114459,-150.0,0.00010337,2]
[355372904,1741084114488,-583.98,0.00010478,2]
[355372905,1741084114515,-1000.0,0.000107,2]
[355372906,1741084114543,-487.0,0.00010712,2]
[355372907,1741084114571,-152.6057679,0.00010774,2]
[355372908,1741084114599,-228.48,0.00010787,2]
[355372909,1741084114626,-1000.0,0.000108,2]
[355372910,1741084114656,-1000.0,0.000108,3]
[355372911,1741084114685,-1292.71816201,0.000108,2]
[355372912,1741084114723,-3912.98574389,0.000108,2]
[355372916,1741084170722,434.64,0.00010016,2]
[355372917,1741084205363,152.24,0.00010016,2]
[355372918,1741084205593,152.24,0.00010069,2]
[355372919,1741084205803,152.24,0.00010122,2]
[355372920,1741084206002,152.24,0.00010176,2]
[355372921,1741084206221,152.24,0.00010229,2]
[355372926,1741084231536,-152.24,0.00010282,2]
[355372927,1741084231545,-152.24,0.00010335,2]
[355372928,1741084231554,-152.24,0.00010388,2]
[355372929,1741084231564,-150.0,0.00010394,2]
[355372930,1741084231573,-550.0,0.00010394,2]
[355372931,1741084231584,-152.24,0.00010441,2]
[355372932,1741084231599,-152.24,0.00010494,2]
[355372933,1741084231609,-116.16276331,0.00010547,2]
[355372934,1741084231735,-36.07723669,0.00010547,2]
[355372935,1741084231744,-152.24,0.000106,2]
[355372936,1741084231754,-152.24,0.00010653,2]
[355372937,1741084231763,-152.24,0.00010706,2]
[355372938,1741084231772,-152.24,0.00010759,2]
[355372939,1741084231782,-152.6057679,0.00010772,2]
[355372940,1741084231791,-817.55242787,0.000108,2]
[355372941,1741084231803,-804.66366623,0.000108,2]
[355372942,1741084231813,-59.90596122,0.00010812,2]
[355372943,1741084231861,-92.33403878,0.00010812,2]
[355372944,1741084231871,-152.24,0.00010865,2]
[355372945,1741084231880,-574.52321162,0.00010886,2]
[355372946,1741084231891,-107.6079796,0.00010886,2]
[355372947,1741084231901,-300.0,0.00010886,2]
[355372948,1741084231910,-150.0,0.00010886,2]
[355372949,1741084231921,-92.3920204,0.00010886,2]
[355372950,1741084231934,-1022.2639796,0.00010886,2]
[355372951,1741084231943,-658.95151181,0.00010887,2]
[355372955,1741084237418,-15314.61458819,0.00010887,2]
[355372957,1741084237428,-18682.3379937,0.00010887,2]
[355372959,1741084237474,-984.58405442,0.00010887,2]
[355372960,1741084237486,-1471.09,0.00010887,2]
[355372976,1741084238072,-695.70795188,0.00010887,2]
[355372978,1741084238083,-270.0584,0.00010887,2]
[355372980,1741084238093,-4205.6622,0.00010888,2]
[355372982,1741084238102,-21008.821,0.00010888,2]
[355372984,1741084238112,-1549.2868,0.00010888,2]
[355372986,1741084238121,-2000.0,0.000109,3]
[355372988,1741084238130,-158.75222907,0.000109,2]
[355372990,1741084238139,-152.24,0.00010918,2]
[355372992,1741084238148,-634.8589,0.00010968,2]
[355372994,1741084238157,-500.0,0.00010985,2]
[355372996,1741084238166,-663.57,0.00010985,2]
[355373021,1741084238175,-1258.96,0.00010985,2]
[355373023,1741084238410,-1605.12,0.00010985,2]
[355373025,1741084238419,-814.85,0.00010985,2]
[355373027,1741084238429,-931.49,0.00010985,2]
[355373029,1741084238439,-535.26,0.00010985,2]
[355373031,1741084238450,-1417.21,0.00010986,2]
[355373033,1741084238459,-869.69,0.00010986,2]
[355373035,1741084238469,-983.82,0.00010986,2]
[355373037,1741084238478,-1037.82,0.00010986,2]
[355373039,1741084238488,-500.0,0.00010986,2]
[355373041,1741084238497,-500.0,0.00010986,2]
[355373043,1741084238508,-1089.96,0.00010986,2]
[355373045,1741084238517,-889.92,0.00010986,2]
[355373047,1741084238527,-500.0,0.00010986,2]
[355373049,1741084238537,-1159.17,0.00010986,2]
[355373051,1741084238547,-758.65,0.00010986,2]
[355373053,1741084238557,-793.6,0.00010986,2]
[355373055,1741084238567,-694.16,0.00010986,2]
[355373057,1741084238577,-650.23,0.00010986,2]
[355373059,1741084238593,-1123.87,0.00010986,2]
[355373061,1741084238604,-799.18,0.00010986,2]
[355373064,1741084238614,-622.31,0.00010986,2]
[355373066,1741084238624,-500.0,0.00010986,2]
[355373068,1741084238636,-946.52,0.00010986,2]
[355373070,1741084238646,-500.0,0.00010986,2]
[355373072,1741084238657,-664.5,0.00010986,2]
[355373074,1741084238667,-500.0,0.00010986,2]
[355373076,1741084238676,-761.99,0.00010986,2]
[355373078,1741084238685,-1751.143816,0.00010986,2]
[355373080,1741084238695,-785.55,0.00010986,2]
[355373082,1741084238704,-707.36,0.00010986,2]
[355373084,1741084238713,-500.0,0.00010986,2]
[355373086,1741084238723,-1086.89,0.00010986,2]
[355373088,1741084238732,-621.68,0.00010986,2]
[355373090,1741084238742,-577.48225961,0.00010986,2]
[355373092,1741084238754,-572.86121339,0.00010986,2]
[355373094,1741084238764,-260.83462534,0.00010986,2]
[355373098,1741084238793,-239.16537466,0.00010986,2]
[355373100,1741084238802,-174.87470821,0.00010986,2]
[355373102,1741084238814,-325.12529179,0.00010986,2]
[355373104,1741084238823,-302.70815714,0.00010986,2]
[355373106,1741084238837,-695.04,0.00010986,2]
[355373108,1741084238846,-784.45,0.00010986,2]
[355373110,1741084238856,-163.88303914,0.00010986,2]
[355373113,1741084238877,-971.32696086,0.00010986,2]
[355373115,1741084238887,-653.99,0.00010986,2]
[355373117,1741084238896,-500.0,0.00010986,2]
[355373119,1741084238905,-837.87,0.00010986,2]
[355373121,1741084238914,-723.03,0.00010986,2]
[355373123,1741084238924,-551.63,0.00010986,2]
[355373125,1741084238938,-630.31,0.00010986,2]
[355373127,1741084238948,-1314.21,0.00010986,2]
[355373129,1741084238957,-2040.2,0.00010986,2]
[355373131,1741084238967,-592.75,0.00010986,2]
[355373133,1741084238977,-1576.22,0.00010986,2]
[355373135,1741084238986,-500.0,0.00010986,2]
[355373137,1741084238996,-2049.13,0.00010986,2]
[355373139,1741084239006,-673.07,0.00010986,2]
[355373141,1741084239016,-960.47,0.00010986,2]
[355373143,1741084239026,-510.81114962,0.00010986,2]
[355373145,1741084239035,-505.23206607,0.00010986,2]
[355373147,1741084239045,-503.15891962,0.00010986,2]
[355373149,1741084239054,-500.0,0.00010986,2]
[355373151,1741084239063,-1157.23,0.00010986,2]
[355373153,1741084239073,-311.65271144,0.00010986,2]
[355373155,1741084239085,-1702.91,0.00010986,2]
[355373157,1741084239094,-879.49,0.00010986,2]
[355373159,1741084239104,-1386.75,0.00010986,2]
[355373161,1741084239113,-2161.58,0.00010986,2]
[355373163,1741084239122,-737.23,0.00010986,2]
[355373165,1741084239131,-2289.5,0.00010986,2]
[355373167,1741084239141,-1391.98,0.00010986,2]
[355373169,1741084239149,-264.62341073,0.00010986,2]
[355373171,1741084239163,-731.479535,0.00010986,2]
[355373173,1741084239174,-340.65705427,0.00010986,2]
[355373175,1741084239184,-801.26,0.00010986,2]
[355373177,1741084239193,-1643.18691502,0.00010986,2]
[355373236,1741084239720,-266.0565,0.00010986,2]
[355373246,1741084239829,-804.47535862,0.00010986,2]
[355373252,1741084239888,-483.95122636,0.00010986,2]
[355373254,1741084239898,-699.74701558,0.00010986,2]
[355373794,1741084245579,-626.85156658,0.00010985,2]
[355373806,1741084245688,-731.30843342,0.00010985,2]
[355373808,1741084245698,-1417.60298442,0.00010986,2]
[355373810,1741084245707,-565.93,0.00010986,2]
[355373812,1741084245717,-635.28904647,0.00010986,2]
[355374152,1741084249061,-417.67771166,0.00010986,2]
[355376049,1741084268876,23900.0,0.0001004,2]
[355376132,1741084437716,525.58,8.219e-05,2]
[355376133,1741084441211,168.36,0.00010023,2]
[355376134,1741084508224,1000.0,0.00010004,2]
[355376136,1741084751936,534.17,9.993e-05,2]
[355376137,1741084828133,814.53,9.992e-05,2]
[355376138,1741085077890,250.0,9.961e-05,2]
[355376139,1741085153519,1555.04,0.00010141,2]
[355376140,1741085212169,150.0,9.954e-05,7]
[355376141,1741085274807,646.22,9.935e-05,2]
[355376142,1741085327879,156.07,9.933e-05,2]
[355376143,1741085328090,156.07,0.00010032,2]
[355376144,1741085328503,156.07,0.00010131,2]
[355376145,1741085328705,156.07,0.00010231,2]
[355376146,1741085348375,-163.25,0.00010268,2]
[355376147,1741085348407,-156.07,0.0001033,2]
[355376148,1741085348437,-550.0,0.00010372,2]
[355376149,1741085348468,-156.07,0.00010429,2]
[355376150,1741085348498,-525.58,0.00010477,2]
[355376151,1741085348529,-156.07,0.00010529,2]
[355376152,1741085348560,-500.0,0.00010575,2]
[355376153,1741085348589,-156.07,0.00010628,2]
[355376154,1741085348618,-800.0,0.000107,3]
[355376155,1741085348648,-156.07,0.00010727,2]
[355376156,1741085348677,-152.6057679,0.0001077,2]
[355376157,1741085348706,-216.21262744,0.00010784,2]
[355376158,1741085348734,-1700.0,0.000108,3]
[355376159,1741085348763,-150.0,0.000108,2]
[355376160,1741085348794,-156.07,0.00010827,2]
[355376161,1741085348822,-216.21262742,0.00010834,2]
[355376162,1741085348850,-150.0,0.00010849,2]
[355376163,1741085348882,-622.28883848,0.00010884,2]
[355376164,1741085348909,-104.05828841,0.00010884,2]
[355376165,1741085348951,-112.15433901,0.00010884,2]
[355376166,1741085348980,-251.04513624,0.00010884,2]
[355376167,1741085349015,-300.0,0.00010884,2]
[355376168,1741085349045,-616.8592,0.00010884,2]
[355376169,1741085349075,-849.1376,0.00010885,2]
[355376170,1741085349107,-1251.31942238,0.00010885,2]
[355376171,1741085373590,-4.23017762,0.00010885,2]
[355376172,1741085373620,-1000.0,0.00010885,2]
[355376173,1741085373650,-1286.86601238,0.00010886,2]
[355376179,1741085431713,-152.605768,0.0001077,2]
[355376180,1741085431723,-150.0,0.00010827,2]
[355376181,1741085431732,-150.0,0.00010863,2]
[355376182,1741085431741,-44.68808372,0.0001088,2]
[355376183,1741085431766,-6422.75191628,0.0001088,2]
[355376184,1741085431775,-1173.87398762,0.00010886,2]
[355376185,1741085431784,-2753.2927,0.00010886,2]
[355376186,1741085431794,-500.0,0.00010886,2]
[355376187,1741085431803,-195.7858,0.00010886,2]
[355376188,1741085431812,-1455.82575559,0.00010886,2]
[355376189,1741085431824,-2165.13109877,0.00010886,2]
[355376190,1741085431838,-2037.37954564,0.00010886,2]
[355376191,1741085431848,-150.0,0.00010899,2]
[355376192,1741085431858,-201.56,0.000109,2]
[355376193,1741085431868,-657.24887415,0.000109,3]
[355376194,1741085431928,-1942.75112585,0.000109,3]
[355376195,1741085431938,-584.36887415,0.0001091,2]
[355376196,1741085432089,-223.42696585,0.0001091,2]
[355376197,1741085432100,-457.02080956,0.0001091,2]
[355376198,1741085432113,-350.77504044,0.0001091,2]
[355376199,1741085432132,-807.79585,0.0001091,2]
[355376200,1741085432151,-807.79584,0.0001091,2]
[355376201,1741085432169,-807.79584,0.0001091,2]
[355376202,1741085432179,-807.79585,0.0001091,2]
[355376203,1741085432188,-413.28329033,0.00010959,2]
[355376248,1741085437849,-567.38791344,0.00010959,2]
[355376249,1741085437859,-150.0,0.00010959,2]
[355376250,1741085437869,-150.0,0.00010959,2]
[355376251,1741085437878,-500.0,0.00010973,2]
[355376252,1741085437888,-1465.144,0.00010973,2]
[355376253,1741085437897,-179.76523744,0.00010976,2]
[355376254,1741085437907,-3175.090439,0.0001098,2]
[355376255,1741085437917,-8729.5784858,0.0001098,2]
[355376256,1741085437927,-500.0,0.00010982,2]
[355376257,1741085437937,-449.11155792,0.00010982,2]
[355376258,1741085437946,-500.0,0.00010982,2]
[355376259,1741085437956,-500.0,0.00010982,2]
[355376260,1741085437965,-500.0,0.00010982,2]
[355376261,1741085437974,-500.0,0.00010982,2]
[355376262,1741085437984,-255.66512151,0.00010982,2]
[355376263,1741085437993,-854.75,0.00010983,2]
[355376264,1741085438002,-1511.39,0.00010983,2]
[355376265,1741085438012,-1197.99,0.00010983,2]
[355376266,1741085438021,-226.28395611,0.00010983,2]
[355376267,1741085438050,-2596.25604389,0.00010983,2]
[355376268,1741085438059,-914.07,0.00010983,2]
[355376269,1741085438068,-1520.62,0.00010983,2]
[355376270,1741085438078,-368.99698426,0.00010983,2]
[355376467,1741085439998,-1642.43301574,0.00010983,2]
[355376468,1741085440008,-1282.11,0.00010983,2]
[355376469,1741085440017,-678.11,0.00010983,2]
[355376470,1741085440026,-169.95772695,0.00010983,2]
[355376471,1741085440037,-346.89660003,0.00010983,2]
[355376472,1741085440047,-1341.48567302,0.00010983,2]
[355376473,1741085440056,-67.98624905,0.00010983,2]
[355376474,1741085440079,-2335.98375095,0.00010983,2]
[355376475,1741085440088,-2261.83,0.00010983,2]
[355376476,1741085440098,-1386.16,0.00010983,2]
[355376478,1741085440107,-1687.77,0.00010983,2]
[355376480,1741085440116,-2528.98,0.00010983,2]
[355376482,1741085440126,-2455.45,0.00010983,2]
[355376484,1741085440135,-500.0,0.00010983,2]
[355376486,1741085440144,-1071.8,0.00010983,2]
[355376488,1741085440154,-1074.91,0.00010983,2]
[355376490,1741085440163,-1839.34,0.00010983,2]
[355376492,1741085440172,-500.0,0.00010983,2]
[355376494,1741085440181,-683.85,0.00010983,2]
[355376496,1741085440190,-5606.36,0.00010983,2]
[355376498,1741085440199,-820.52,0.00010983,2]
[355376500,1741085440208,-500.0,0.00010983,2]
[355376502,1741085440217,-780.89,0.00010983,2]
[355376504,1741085440226,-2116.21,0.00010983,2]
[355376506,1741085440236,-197.97584621,0.00010983,3]
[355376508,1741085440245,-97678.97040284,0.00010983,2]
[355376510,1741085440256,-1610.52,0.00010983,2]
[355376515,1741085440294,-1217.4,0.00010983,2]
[355376518,1741085440314,-6936.04355414,0.00010983,2]
[355376520,1741085440328,-475.89526786,0.00010983,2]
[355376523,1741085440339,-37039.7605091,0.00010983,2]
[355376815,1741085442945,-1136.29584182,0.00010983,2]
[355376835,1741085443119,-197.68415818,0.00010983,2]
[355376837,1741085443129,-1175.78999947,0.00010983,2]
[355376979,1741085444519,-8434.61598156,0.00010983,2]
[355377120,1741085445883,-1538.24,0.00010983,2]
[355377122,1741085445894,-84219.84363838,0.00010983,2]
[355377125,1741085445906,-164519.93445173,0.00010983,2]
[355377134,1741085445990,-610.52904326,0.00010983,2]
[355377750,1741085498889,163.68,0.00010127,2]
[355377751,1741085503333,1499.99,0.00010127,2]
[355377752,1741085515342,-2006.42406239,0.0001688,30]
[355377753,1741085515405,-5014.28135,0.00018,30]
[355377754,1741085515432,-5014.28135,0.00019125,30]
[355377755,1741085515459,-4168.1165236,0.0002,30]
[355377756,1741085515484,-359.18845889,0.0002,90]
[355377757,1741085515509,-1066.06744835,0.00020011,30]
[355377758,1741085515536,-5014.28135,0.0002025,30]
[355377759,1741085515559,-3341.78776699,0.0002041,30]
[355377760,1741085515589,-5014.28135,0.00021375,30]
[355377761,1741085515617,-1702.85,0.00021973,30]
[355377762,1741085515641,-4728.09915122,0.00022,30]
[355377763,1741085515665,-5328.23761144,0.00022,120]
[355377764,1741085515694,-600.0,0.00023011,30]
[355377765,1741085515719,-600.0,0.00023011,30]
[355377766,1741085515743,-600.0,0.00023011,30]
[355377767,1741085515767,-600.0,0.00023011,30]
[355377768,1741085515791,-600.0,0.00023011,30]
[355377769,1741085515816,-600.0,0.00023011,30]
[355377770,1741085515840,-600.0,0.00023011,30]
[355377771,1741085515864,-600.0,0.00023011,30]
[355377772,1741085515888,-600.0,0.00023011,30]
[355377773,1741085515912,-600.0,0.00023011,30]
[355377774,1741085515936,-600.0,0.00023011,30]
[355377775,1741085515959,-600.0,0.00023011,30]
[355377776,1741085515983,-600.0,0.00023011,30]